[Event "Fagernes Chess GM-Swiss 2024"]
[Site "Fagernes"]
[Date "2024.03.25"]
[Round "2"]
[White "Vestby-Ellingsen, Mads"]
[Black "Kvaloy, Aksel Bu"]
[Result "0-1"]
[ECO "D00"]
[WhiteElo "2336"]
[BlackElo "2454"]
[Annotator "TA"]
[PlyCount "170"]
[EventDate "2024.03.25"]
[EventType "swiss"]
[EventCountry "NOR"]
[SourceTitle "playchess.com"]
[Source "ChessBase"]
[SourceQuality "1"]
[TimeControl "40/6000+30:2400+30"]

{[%evp 93,170,-201,-185,-277,-292,-296,-274,-314,-310,-308,-333,-340,-335,-306,-306,-290,-298,-501,-492,-545,-552,-593,-585,-1162,-1460,-1803,-1676,-1972,-1965,-29968,-1727,-29972,-29974,-29966,-29967,-29966,-6406,-29964,-727,-572,-549,-735,-614,-862,-836,-860,-807,-1000,-922,-1019,0,-893,-891,-860,-739,-607,-1063,-1089,-1037,-1139,-1046,-999,-962,-1585,-1390,-1634,-1726,-1904,-2008,-2221,-2126,-6095,-3014,-4820,-4129,-29981,-29981,-29980,-29981]} 1. d4 {[%emt 0:03:46]} Nf6 {[%emt 0:00:05]} 2. Bg5 {[%emt 0:00:13]} d5 {[%emt 0:00:22]} 3. e3 {[%emt 0:00:14]} g6 {[%emt 0:00:58]} 4. Bxf6 {[%emt 0:05:16]} exf6 {[%emt 0:00:08]} 5. c4 {[%emt 0:00:17]} dxc4 {[%emt 0:01:39]} 6. Bxc4 {[%emt 0:00:20]} Bd6 {[%emt 0:00:35] D00: Damenbauernspiele.} 7. Nc3 {[%emt 0:00:33]} Nd7 $1 {[%emt 0:01:21][%mdl 4] punktet besser als das ältere 7...0-0.} 8. Nf3 {[%emt 0:06:34]} f5 {[%emt 0:04:28]} 9. O-O {[%emt 0:00:30]} O-O {[%emt 0:01:27]} 10. Qc2 {[%emt 0:00:50]} c6 {[%emt 0:01:15]} 11. Rfe1 {[%emt 0:06:49]} Nf6 {[%emt 0:01:53]} 12. a3 {[%emt 0:01:36]} Qe7 {[%emt 0:01:04]} 13. Rad1 {[%emt 0:00:22]} Bd7 {[%emt 0:01:55]} 14. h3 {[%emt 0:03:39]} Kg7 $146 {[%emt 0:01:00]} ({Predecessor:} 14... Rab8 15. b4 Ra8 16. Rb1 Kg7 17. Bd3 Rfe8 18. e4 fxe4 19. Nxe4 Nxe4 20. Rxe4 Qf6 {0-1 Sladek,V (1817)-Doronkin,S W-ch WS/O/1051 email 2018}) 15. Bd3 {[%emt 0:11:05]} Rfe8 {[%emt 0:02:10]} 16. Nd2 {[%emt 0:03:45]} Rad8 {[%emt 0:04:36]} 17. Qc1 {[%emt 0:14:02]} Bb8 {[%emt 0:08:04]} 18. Na4 {[%emt 0:07:15]} Ne4 {[%emt 0:07:44]} 19. Nf1 {[%emt 0:01:13]} h5 {[%emt 0:09:11]} 20. b4 {[%emt 0:02:16]} h4 {[%emt 0:04:37]} 21. Qb2 {[%emt 0:02:23]} Qg5 {[%emt 0:04:32]} 22. f3 {[%emt 0:08:48]} Ng3 {[%emt 0:02:28]} 23. f4 {[%emt 0:00:12]} Qf6 {[%emt 0:00:28]} 24. Nh2 {[%emt 0:01:21]} b6 {[%emt 0:04:04]} 25. Nf3 {[%emt 0:02:43]} c5 {[%emt 0:03:20]} 26. Nc3 {[%emt 0:01:05]} Bc6 {[%emt 0:02:58]} 27. bxc5 {[%emt 0:10:48]} Bxf3 {[%emt 0:03:26]} 28. gxf3 {[%emt 0:00:08]} bxc5 {[%emt 0:00:14]} 29. d5 {[%emt 0:06:22]} Rxd5 {[%emt 0:03:39]} 30. Bb5 {[%emt 0:02:34]} Rxd1 {[%emt 0:10:46]} 31. Nxd1 {[%emt 0:00:11]} Rd8 {[%emt 0:00:28]} 32. Bc4 {[%emt 0:02:57]} Bc7 {[%emt 0:04:05]} 33. Qxf6+ {[%emt 0:00:36]} Kxf6 {[%emt 0:00:03]} 34. Nc3 {[%emt 0:01:05]} Ba5 {[%emt 0:01:35]} 35. Rd1 {[%emt 0:00:09]} Rxd1+ {[%emt 0:09:19]} 36. Nxd1 {[%emt 0:00:06]} Ke7 {[%emt 0:00:39]} 37. Nb2 {[%emt 0:01:11]} Bd2 {[%emt 0:03:52]} 38. Kf2 {[%emt 0:01:13]} f6 {[%emt 0:02:46]} 39. Nd3 {[%emt 0:03:13]} Kd6 {[%emt 0:00:36]} 40. Ba2 {[%emt 0:01:37]} Kc6 {[%emt 0:03:03]} 41. Bc4 {[%emt 0:05:53]} Kb6 {[%emt 0:03:34]} 42. Bf7 {[%emt 0:05:33]} g5 {[%emt 0:17:42]} 43. fxg5 {[%emt 0:06:04]} fxg5 {[%emt 0:00:07]} 44. Bc4 {[%emt 0:03:51]} f4 {[%emt 0:06:43]} 45. exf4 {[%emt 0:02:13]} Bxf4 {[%emt 0:01:08]} 46. Be6 {[%emt 0:02:00]} Kc6 {[%emt 0:02:44]} 47. Ne1 {[%emt 0:06:31]} Kd6 {[%emt 0:02:53]} 48. Ba2 {[%emt 0:00:11]} (48. Bf7 $142) 48... Ke5 $19 {[%emt 0:01:22]} 49. Nc2 {[%emt 0:00:18]} Bc1 {[%emt 0:02:17]} 50. a4 {[%emt 0:00:09]} Nh5 {[%emt 0:01:08]} 51. Bc4 {[%emt 0:02:15]} Nf4 {[%emt 0:00:49]} 52. Bf1 {[%emt 0:00:07]} Bd2 {[%emt 0:02:26]} 53. Na3 {[%emt 0:00:29]} Bb4 {[%emt 0:00:51]} 54. Nc2 {[%emt 0:05:11]} a5 {[%emt 0:00:45]} 55. Ke3 $2 {[%emt 0:00:30]} (55. Kg1 {kämpft weiter.}) 55... Nd5+ $19 {[%emt 0:01:32]} 56. Kf2 {[%emt 0:01:15]} Nc3 {[%emt 0:00:28]} 57. Ne1 {[%emt 0:00:30]} Nxa4 {[%emt 0:01:05]} 58. Ng2 {[%emt 0:00:08]} Bd2 {[%emt 0:01:24]} 59. Ke2 {[%emt 0:00:08]} Bf4 {[%emt 0:00:12]} 60. Kd3 {[%emt 0:00:07]} Kd5 {[%emt 0:00:34]} 61. Be2 {[%emt 0:00:45]} c4+ {[%emt 0:00:34]} 62. Kc2 {[%emt 0:00:07]} Kd4 {[%emt 0:00:18]} 63. Bf1 {[%emt 0:00:13]} Nc3 {[%emt 0:01:19]} 64. Kb2 {[%emt 0:00:10]} Nd5 {[%emt 0:00:44]} (64... a4 $142 65. Ka3 Bd6+ 66. Kb2 a3+ 67. Ka1 Bg3 68. f4 gxf4 (68... Bxf4 69. Nxf4 gxf4 70. Bxc4 f3 71. Bf1 Nd5 72. Kb1 Nb4 73. Ka1 Kc3 74. Bb5 Kb3 75. Ba4+ Kxa4 76. Kb1 Kb3 77. Kc1 Kc3 78. Kd1 a2 79. Ke1 Nd3+ 80. Kf1 a1=Q#) 69. Nxh4 Bxh4 70. Bxc4 f3 71. Bf7 Bg5 (71... f2 72. Bc4 Bg5 73. Ba6 Bc1 74. h4 Bb2#) 72. Bg6 Bc1 73. Bh7 Bb2#) 65. Ne1 {[%emt 0:00:09]} c3+ {[%emt 0:00:43]} (65... Ne3 $142 66. Be2 a4 67. Ka3 Bg3 68. Ng2 Nxg2 69. Bd1 Nf4 70. Kxa4 Nxh3 71. Kb4 Nf2 72. Bc2 h3 73. Bg6 Nd3+ 74. Kb5 h2 75. Bxd3 cxd3 (75... h1=R $2 76. Bf5 $19) 76. Kb6 h1=Q (76... h1=R {ist ein Selbstmatt.} 77. Kc6 d2 78. Kd7 d1=Q 79. Ke7 Qxf3 80. Ke6 Rh6+ 81. Kd7 Rh7+ 82. Ke8 Qa8#) 77. Kc6 d2 (77... Qxf3+ {wird mattgesetzt.} 78. Kd7 Qf6 79. Kc8 Qf7 80. Kd8 Kc5 81. Kc8 Qc7#) 78. Kd7 Qh7+ (78... d1=B {führt zum Matt.} 79. Ke7 Qxf3 80. Ke6 Qf8 81. Kd7 Qd6+ 82. Ke8 Bh5#) 79. Ke8 Bd6 (79... d1=B 80. f4 Bh5+ 81. Kd8 Bxf4 82. Kc8 Qc7#) (79... d1=Q $2 80. Kd8 Qxf3 81. Ke8 Qa8#) 80. Kd8 Qe7+ 81. Kc8 Qc7#) 66. Kb1 $19 {[%emt 0:01:27]} Ke3 {[%emt 0:01:01]} 67. Bc4 {[%emt 0:00:15]} Nb6 {[%emt 0:01:10]} 68. Be6 {[%emt 0:01:15]} Kd2 {[%emt 0:00:27]} 69. Nc2 {[%emt 0:00:08]} Na4 {[%emt 0:00:39]} 70. Nd4 {[%emt 0:01:46]} Nb2 {[%emt 0:01:20]} 71. Nc2 {[%emt 0:03:13]} Na4 $2 {[%emt 0:00:23]} (71... Nd3 $19 72. Bd7 Nf2) 72. Bf5 $2 {[%emt 0:00:30][%mdl 8192]} (72. Nd4 $11 Nb2 73. Bf5) 72... Nc5 $19 {[%emt 0:00:24]} 73. Na3 {[%emt 0:00:31]} a4 {[%emt 0:00:22]} 74. Nc4+ {[%emt 0:01:22]} Kd1 {[%emt 0:00:25]} 75. Na3 {[%emt 0:00:19]} Nb3 {[%emt 0:00:34]} 76. Bc2+ {[%emt 0:01:27]} Ke2 {[%emt 0:00:14]} 77. Bg6 {[%emt 0:01:20]} Kxf3 {[%emt 0:00:40]} 78. Kc2 {[%emt 0:00:17]} Kg3 {[%emt 0:00:45]} 79. Kxc3 {[%emt 0:00:42]} Kxh3 {[%emt 0:00:06]} 80. Bf5+ {[%emt 0:00:29]} Kg3 {[%emt 0:00:24]} 81. Nc2 {[%emt 0:00:33]} h3 {[%emt 0:00:27]} 82. Kb4 {[%emt 0:00:55]} h2 {[%emt 0:00:13]} 83. Be4 {[%emt 0:00:05]} Kf2 {[%emt 0:00:11]} 84. Bc6 {[%emt 0:01:21]} g4 {[%emt 0:00:29]} 85. Kxa4 {[%emt 0:00:07]} g3 {[%emt 0:00:43]} 0-1

[Event "Fagernes Chess GM-Swiss 2024"]
[Site "Fagernes"]
[Date "2024.03.25"]
[Round "2"]
[White "Dushyant Sharma"]
[Black "Chasin, Nico"]
[Result "1/2-1/2"]
[ECO "B48"]
[WhiteElo "2331"]
[BlackElo "2447"]
[Annotator "TA"]
[PlyCount "56"]
[EventDate "2024.03.25"]
[EventType "swiss"]
[EventCountry "NOR"]
[SourceTitle "playchess.com"]
[Source "ChessBase"]
[SourceQuality "1"]
[TimeControl "40/6000+30:2400+30"]

{[%evp 11,56,22,29,27,25,26,29,20,16,-21,-24,-16,22,17,11,22,18,7,14,5,13,16,31,0,0,-2,-4,-4,0,0,16,3,6,9,389,11,6,9,9,0,0,0,0,0,0,0,12]} 1. e4 {[%emt 0:00:03]} c5 {[%emt 0:07:12]} 2. Nf3 {[%emt 0:00:08]} e6 {[%emt 0:00:41]} 3. d4 {[%emt 0:00:07]} cxd4 {[%emt 0:00:04]} 4. Nxd4 {[%emt 0:00:09]} Nc6 {[%emt 0:00:39]} 5. Nc3 {[%emt 0:00:10]} Qc7 {[%emt 0:00:44]} 6. Be3 {[%emt 0:01:15]} a6 {[%emt 0:00:57]} 7. Qf3 {[%emt 0:01:44]} Bd6 {[%emt 0:06:40] Against Qg3} 8. Nxc6 {[%emt 0:12:40]} bxc6 {[%emt 0:02:34][%cal Bb7c6,Bc6c5,Bc5c4][%mdl 32]} 9. Bd4 {[%emt 0:07:38] White has an edge.} Nf6 {[%emt 0:02:45]} 10. Bd3 {[%emt 0:16:06]} Rb8 {[%emt 0:03:53]} 11. Nd1 {[%emt 0:14:28]} c5 {[%emt 0:06:52]} (11... e5 {simplifies} 12. Bc3 O-O 13. O-O Re8) 12. Bxf6 {[%emt 0:02:14]} gxf6 {[%emt 0:04:44]} 13. Qxf6 {[%emt 0:01:04]} Be5 {[%emt 0:00:39]} 14. Qh4 {[%emt 0:01:12]} c4 $1 {[%emt 0:01:21]} 15. Be2 {[%emt 0:00:44]} Qa5+ {[%emt 0:04:45]} 16. Kf1 {[%emt 0:03:25]} Qd2 {[%emt 0:18:01]} (16... Bxb2 {simplifies} 17. Nxb2 Qc3 18. Qg3 Qxg3 19. hxg3 Rxb2 20. Bxc4 Rxc2 21. Bb3 Rb2) 17. Ne3 {[%emt 0:04:25][%cal Oa1d1,Bd1e3,Be3c4,Bc4e5][%mdl 32] Hoping for Rd1!} Rxb2 {[%emt 0:03:35]} (17... Bxb2 $6 18. Nxc4 Qc3 19. Nd6+ Kf8 20. Qh5 $16) 18. Nxc4 {[%emt 0:19:05] [#]} (18. Rd1 $5 Qc3 $8 19. Qh5 $16) 18... Rxa2 $1 {[%emt 0:00:22]} 19. Re1 $132 {[%emt 0:00:14][%mdl 2048] White puts up resistance. Some like it hot} (19. Nd6+ $2 Bxd6 20. Qf6 Rg8 $19 (20... Rxc2 $2 21. Qf3 $19)) 19... Qc3 {[%emt 0:01:20]} (19... Qxc2 $2 20. Nxe5 Qc5 21. Qf6 $18) 20. Bd3 {[%emt 0:02:48]} Rxc2 {[%emt 0:01:32]} (20... Ra1 21. Ke2 Rxe1+ 22. Rxe1 $16) 21. Nxe5 {[%emt 0:04:42]} (21. Bxc2 $2 {loses.} Qxc4+ 22. Re2 a5 $19) 21... Rc1 {[%emt 0:00:23][%csl Gc1][%cal Rc3e1]} 22. Ke2 {[%emt 0:06:39]} Qb2+ {[%emt 0:01:34][%mdl 8192] [#]} (22... Rxe1+ $11 23. Rxe1 Qb2+ 24. Kf1 Qxe5) 23. Ke3 $2 {[%emt 0:00:43]} ({White must play} 23. Kf3 $18 Rc5 (23... Rxe1 $2 24. Qf6 $18) 24. Ng4) 23... Rxe1+ $11 {[%emt 0:00:38] The position is equal.} 24. Rxe1 {[%emt 0:00:06]} Qxe5 {[%emt 0:00:06]} 25. Rc1 {[%emt 0:00:13]} Bb7 {[%emt 0:00:26]} 26. f4 {[%emt 0:00:21]} Qa5 {[%emt 0:05:34]} 27. Qf6 {[%emt 0:03:23] Active counter play!} Rg8 {[%emt 0:00:09]} 28. g3 {[%emt 0:04:54]} Qb6+ {[%emt 0:07:27] Weighted Error Value: White=0.28 (precise) /Black=0.32.  Loses game:     	---       	Black=1      Missed win:     	White=1     	---        Inaccurate:     	White=2     	Black=1      OK:         	White=9     	Black=7      Best:        	---       	Black=2      Strong:       	---       	Black=1      Brilliant:      	---       	Black=1} 1/2-1/2

[Event "Fagernes Chess GM-Swiss 2024"]
[Site "Fagernes"]
[Date "2024.03.25"]
[Round "2"]
[White "Kistrup, Nicolai"]
[Black "Trost, Edvin"]
[Result "0-1"]
[ECO "B12"]
[WhiteElo "2324"]
[BlackElo "2432"]
[Annotator "TA"]
[PlyCount "56"]
[EventDate "2024.03.25"]
[EventType "swiss"]
[EventCountry "NOR"]
[SourceTitle "playchess.com"]
[Source "ChessBase"]
[SourceQuality "1"]
[TimeControl "40/6000+30:2400+30"]

{[%evp 9,56,15,24,21,24,33,16,24,34,12,44,48,42,60,43,25,27,26,29,-50,-16,-15,-7,-54,-23,-188,-183,-198,-179,-237,-201,-238,-256,-231,-250,-219,-213,-493,-491,-893,-886,-4962,-4970,-4927,-4794,-29991,-29992,-29992,-29992]} 1. e4 {[%emt 0:00:02]} c6 {[%emt 0:01:51]} 2. d4 {[%emt 0:00:22]} d5 {[%emt 0:00:05]} 3. e5 {[%emt 0:00:03]} Bf5 {[%emt 0:00:04]} 4. Nd2 {[%emt 0:00:05]} e6 {[%emt 0:04:01]} 5. Nb3 {[%emt 0:00:06]} Qc7 {[%emt 0:01:21]} 6. Nf3 {[%emt 0:02:25]} c5 {[%emt 0:00:36]} 7. Bb5+ {[%emt 0:10:10]} Nc6 {[%emt 0:01:55]} 8. dxc5 {[%emt 0:02:11] The position is equal.} (8. Bxc6+ {feels hotter.} Qxc6 9. dxc5 Bxc5 10. Nfd4) 8... Bxc5 {[%emt 0:00:48]} 9. Bxc6+ {[%emt 0:01:11]} bxc6 {[%emt 0:00:58]} 10. Nxc5 {[%emt 0:02:03]} Qa5+ {[%emt 0:00:16]} 11. c3 {[%emt 0:00:30]} Qxc5 {[%emt 0:00:07]} 12. Nd4 {[%emt 0:10:36]} Ne7 {[%emt 0:16:23]} 13. Be3 {[%emt 0:07:51] [#] Nxf5 would now be deadly.} Qc4 {[%emt 0:05:24]} 14. g4 {[%emt 0:27:14]} ({Better is} 14. Qb3 $11 O-O 15. Qxc4 dxc4 16. Nxf5 Nxf5 17. O-O-O) 14... Bg6 {[%emt 0:06:44] With the idea ...c5.} 15. Qb3 {[%emt 0:07:49]} Qa6 {[%emt 0:01:13] Inhibits Qb7.} 16. Bg5 {[%emt 0:01:59]} (16. Qb4 $11) 16... Nc8 {[%emt 0:05:40]} 17. O-O-O $2 {[%emt 0:07:20] Now White is beyond hope.} (17. Qb4 $11 {and White stays safe.}) 17... O-O $19 {[%emt 0:04:56] aiming for ...c5.} 18. f4 {[%emt 0:07:17]} c5 {[%emt 0:05:34]} 19. f5 {[%emt 0:03:14]} cxd4 {[%emt 0:00:23]} 20. fxg6 {[%emt 0:00:19]} dxc3 {[%emt 0:00:06]} (20... fxg6 21. Rxd4 Nb6 22. Rb4) (20... hxg6 21. cxd4 Nb6 22. Kb1 $11) 21. gxh7+ {[%emt 0:01:21]} Kh8 $1 {[%emt 0:01:02] [#] Strongly threatening ...Nb6.} 22. Kb1 {[%emt 0:05:34]} cxb2 {[%emt 0:03:04] And now ...Nb6 would win.} (22... Kxh7 23. Qxc3 (23. bxc3 $2 Nb6 $19) 23... Nb6 24. Qg3 $17) 23. Qf3 $2 {[%emt 0:03:14]} (23. Qe3 d4 (23... Kxh7 24. Bf6 $11) 24. Rxd4) 23... Nb6 {[%emt 0:07:01]} (23... Kxh7 24. Bf6 $11) 24. Be7 {[%emt 0:04:14]} (24. Bf6 $142 Nd7 (24... gxf6 25. Qxf6+ Kxh7 26. Qh4+ Kg8 27. Qg5+ Kh7 28. Qh4+ Kg8 29. Qg5+ Kh7 30. Qh4+ $11) (24... Kxh7 25. Bxg7 Qc4 26. Bxf8 $14) 25. Be7 Nxe5 26. Qg3) 24... Rfc8 {[%emt 0:04:40] Hoping for ...Na4.} 25. Bf6 {[%emt 0:03:01]} Na4 {[%emt 0:00:29] ( -> ...Nc3+)} ({And not} 25... gxf6 26. Qxf6+ Kxh7 27. Qxf7+ Kh8 28. Qf6+ Kh7 29. Qe7+ Kg8 30. Qg5+ (30. Kxb2 {leads to mate.} Qe2+ 31. Kb1 Qe4+ 32. Ka1 Qxe5+ 33. Kb1 Rab8) (30. Qxe6+ Kh7 $11) 30... Kh7 31. Qh5+ Kg7 32. Qg5+ Kh7 33. Qe7+ Kh8 34. Qf6+ Kh7 35. Qh4+ Kg8 36. Qg5+ Kh7 $11) 26. Bxg7+ {[%emt 0:01:43]} Kxh7 $1 {[%emt 0:00:05]} 27. Rd3 {[%emt 0:01:25] Against Nc3+} Qc4 {[%emt 0:01:53][%csl Gc8][%cal Rc4c2]} 28. Qd1 {[%emt 0:00:27]} Kxg7 {[%emt 0:00:21] Weighted Error Value: White=1.11/Black=0.06 (flawless) .  Loses game:     	White=1     	---        Mistake:       	White=4     	---        Inaccurate:     	White=1     	Black=3      OK:         	White=6     	Black=10     Best:        	White=3     	Black=2      Strong:       	---       	Black=1} 0-1

[Event "Fagernes Chess GM-Swiss 2024"]
[Site "Fagernes"]
[Date "2024.03.25"]
[Round "2"]
[White "Vagman, Roy"]
[Black "Johansson, Linus"]
[Result "1/2-1/2"]
[ECO "C02"]
[WhiteElo "2311"]
[BlackElo "2427"]
[Annotator "TA"]
[PlyCount "24"]
[EventDate "2024.03.25"]
[EventType "swiss"]
[EventCountry "NOR"]
[SourceTitle "playchess.com"]
[Source "ChessBase"]
[SourceQuality "1"]
[TimeControl "40/6000+30:2400+30"]

{[%evp 19,24,0,0,0,0,0,0]} 1. e4 {[%emt 0:00:37]} e6 {[%emt 0:00:03]} 2. d4 {[%emt 0:00:11]} d5 {[%emt 0:00:04]} 3. e5 {[%emt 0:00:21]} c5 {[%emt 0:00:05]} 4. c3 {[%emt 0:00:05]} Nc6 {[%emt 0:00:04]} 5. Nf3 {[%emt 0:00:08]} Qb6 {[%emt 0:00:03]} 6. Be2 {[%emt 0:00:40]} cxd4 {[%emt 0:00:06]} 7. cxd4 {[%emt 0:00:08]} Nh6 {[%emt 0:00:05]} 8. Nc3 {[%emt 0:07:18]} Nf5 {[%emt 0:00:27]} 9. Na4 {[%emt 0:00:34]} Qa5+ {[%emt 0:00:13]} 10. Nc3 {[%emt 0:00:05]} Qb6 {[%emt 0:05:00][%cal Rf5d4] The position is equal.} 11. Na4 {[%emt 0:00:07]} Qa5+ {[%emt 0:00:05]} 12. Nc3 {[%emt 0:00:06]} Qb6 {[%emt 0:00:52] A rather calm draw.   Weighted Error Value: White=0.00 (flawless) /Black=0.00 (flawless) .  OK:         	White=1     	Black=1} 1/2-1/2

[Event "Fagernes Chess GM-Swiss 2024"]
[Site "Fagernes"]
[Date "2024.03.25"]
[Round "2"]
[White "Gandrud, Vegar Koi"]
[Black "Anishka Vikram"]
[Result "0-1"]
[ECO "E06"]
[WhiteElo "2293"]
[BlackElo "1995"]
[Annotator "RC"]
[PlyCount "80"]
[EventDate "2024.03.25"]
[EventType "swiss"]
[EventCountry "NOR"]
[SourceTitle "playchess.com"]
[Source "ChessBase"]
[SourceQuality "1"]
[TimeControl "40/6000+30:2400+30"]

1. d4 {[%emt 0:00:02]} d5 {[%emt 0:00:42]} 2. c4 {[%emt 0:00:05]} e6 {[%emt 0:00:11]} 3. Nf3 {[%emt 0:00:04]} Nf6 {[%emt 0:00:10]} 4. g3 {[%emt 0:00:04]} Be7 {[%emt 0:00:10]} 5. Bg2 {[%emt 0:00:05]} O-O {[%emt 0:00:13]} 6. O-O {[%emt 0:00:05]} c6 {[%emt 0:00:18]} 7. b3 {[%emt 0:00:10]} b6 {[%emt 0:00:25]} 8. Nc3 {[%emt 0:00:15]} Ba6 {[%emt 0:00:19]} 9. a4 {[%emt 0:13:01]} dxc4 {[%emt 0:13:38]} 10. Ne5 {[%emt 0:07:56]} cxb3 {[%emt 0:10:39]} 11. Bxc6 {[%emt 0:00:33]} Nxc6 {[%emt 0:04:28]} 12. Nxc6 {[%emt 0:00:07]} Qc7 {[%emt 0:01:52]} 13. Nxe7+ {[%emt 0:00:07]} Qxe7 {[%emt 0:00:38]} 14. Ba3 {[%emt 0:01:05]} Qc7 {[%emt 0:01:38]} 15. Nb5 {[%emt 0:16:16]} Bxb5 {[%emt 0:04:26]} 16. Bxf8 {[%emt 0:00:21]} Be8 {[%emt 0:19:59]} 17. Ba3 {[%emt 0:22:57]} Bxa4 {[%emt 0:01:20]} 18. Bb2 {[%emt 0:00:40]} Qd7 {[%emt 0:04:55]} 19. Qd2 {[%emt 0:01:52]} Bc6 {[%emt 0:04:03]} 20. Qb4 {[%emt 0:04:27]} Bd5 {[%emt 0:17:33]} 21. f3 {[%emt 0:10:12]} b5 {[%emt 0:00:47]} 22. Ra6 {[%emt 0:07:31]} Qc8 {[%emt 0:03:25]} 23. Qa5 {[%emt 0:05:29]} Qc2 {[%emt 0:04:37]} 24. Rxa7 {[%emt 0:00:06]} Rf8 {[%emt 0:00:36]} 25. Ba3 {[%emt 0:03:00]} Qxe2 {[%emt 0:00:19]} 26. Qb4 {[%emt 0:07:40]} Re8 {[%emt 0:01:25]} 27. Re7 {[%emt 0:04:56]} Rxe7 {[%emt 0:02:16]} 28. Qxe7 {[%emt 0:00:11]} h6 {[%emt 0:00:07]} 29. Rf2 {[%emt 0:02:25]} Qe1+ {[%emt 0:03:21]} 30. Rf1 {[%emt 0:00:30]} Qe3+ {[%emt 0:00:22]} 31. Rf2 {[%emt 0:01:05]} Bxf3 {[%emt 0:00:35]} 32. Qf8+ {[%emt 0:01:27]} Kh7 {[%emt 0:00:04]} 33. Qxf7 {[%emt 0:00:07]} Qe1+ {[%emt 0:10:14]} 34. Rf1 {[%emt 0:00:01]} Qe2 {[%emt 0:00:35]} 35. Rf2 {[%emt 0:00:09]} Qd1+ {[%emt 0:00:09]} 36. Rf1 {[%emt 0:00:12]} Qxd4+ {[%emt 0:00:34]} 37. Rf2 {[%emt 0:00:01]} Qa1+ {[%emt 0:00:31]} 38. Rf1 {[%emt 0:00:04]} Qxa3 {[%emt 0:00:54]} 39. Rxf3 {[%emt 0:00:05]} Qc1+ {[%emt 0:00:06]} 40. Kg2 {[%emt 0:00:49]} b2 {[%emt 0:00:24]} 0-1

[Event "Fagernes Chess GM-Swiss 2024"]
[Site "Fagernes"]
[Date "2024.03.25"]
[Round "2"]
[White "Daakshin Arun"]
[Black "Holand, Per Fredrik"]
[Result "1-0"]
[ECO "D13"]
[WhiteElo "2283"]
[BlackElo "2068"]
[Annotator "RC"]
[PlyCount "89"]
[EventDate "2024.03.25"]
[EventType "swiss"]
[EventCountry "NOR"]
[SourceTitle "playchess.com"]
[Source "ChessBase"]
[SourceQuality "1"]
[TimeControl "40/6000+30:2400+30"]

1. d4 {[%emt 0:00:03]} d5 {[%emt 0:12:55]} 2. c4 {[%emt 0:00:09]} c6 {[%emt 0:00:09]} 3. Nc3 {[%emt 0:00:05]} Nf6 {[%emt 0:00:04]} 4. cxd5 {[%emt 0:00:07]} cxd5 {[%emt 0:00:09]} 5. Bf4 {[%emt 0:00:07]} Nc6 {[%emt 0:00:08]} 6. e3 {[%emt 0:00:03]} a6 {[%emt 0:00:07]} 7. Be2 {[%emt 0:00:05]} Bf5 {[%emt 0:00:11]} 8. Nf3 {[%emt 0:00:05]} e6 {[%emt 0:00:17]} 9. Qb3 {[%emt 0:00:37]} Bd6 {[%emt 0:02:38]} 10. Bxd6 {[%emt 0:01:58]} Qxd6 {[%emt 0:00:04]} 11. Qxb7 {[%emt 0:00:05]} O-O {[%emt 0:00:20]} 12. Qb3 {[%emt 0:00:12]} Rfc8 {[%emt 0:02:34]} 13. Rc1 {[%emt 0:12:40]} Na5 {[%emt 0:03:11]} 14. Qa4 {[%emt 0:06:24]} Nc4 {[%emt 0:01:12]} 15. Bxc4 {[%emt 0:02:53]} Rxc4 {[%emt 0:00:16]} 16. Qa5 {[%emt 0:05:07]} Rb8 {[%emt 0:03:18]} 17. Ne5 {[%emt 0:06:00]} Rcc8 {[%emt 0:12:39]} 18. O-O {[%emt 0:03:27]} Rxb2 {[%emt 0:01:21]} 19. Ne4 {[%emt 0:13:39]} Qf8 {[%emt 0:03:36]} 20. Rxc8 {[%emt 0:06:06]} Qxc8 {[%emt 0:00:09]} 21. Nd6 {[%emt 0:00:49]} Qb8 {[%emt 0:01:38]} 22. Nxf5 {[%emt 0:06:42]} exf5 {[%emt 0:00:10]} 23. Qxa6 {[%emt 0:00:43]} h6 {[%emt 0:02:19]} 24. h3 {[%emt 0:02:07]} Ne4 {[%emt 0:01:08]} 25. Qc6 {[%emt 0:04:41]} Rb1 {[%emt 0:01:23]} 26. Rc1 {[%emt 0:04:26]} Kh7 {[%emt 0:01:37]} 27. Nd3 {[%emt 0:02:57]} Rxc1+ {[%emt 0:13:12]} 28. Qxc1 {[%emt 0:00:08]} Qa7 {[%emt 0:00:08]} 29. Qc2 {[%emt 0:01:53]} Qa5 {[%emt 0:00:44]} 30. Kh2 {[%emt 0:04:02]} g6 {[%emt 0:01:06]} 31. Qb2 {[%emt 0:06:20]} Qc7+ {[%emt 0:00:32]} 32. Kg1 {[%emt 0:01:51]} Nc3 {[%emt 0:00:36]} 33. Nc5 {[%emt 0:02:14]} Ne4 {[%emt 0:00:26]} 34. Nxe4 {[%emt 0:02:29]} fxe4 {[%emt 0:00:13]} 35. a4 {[%emt 0:02:22]} f5 {[%emt 0:00:21]} 36. Qb5 {[%emt 0:01:44]} f4 {[%emt 0:01:06]} 37. Qxd5 {[%emt 0:01:02]} fxe3 {[%emt 0:02:51]} 38. fxe3 {[%emt 0:00:07]} Qc1+ {[%emt 0:00:04]} 39. Kh2 {[%emt 0:00:03]} Qxe3 {[%emt 0:00:05]} 40. Qf7+ {[%emt 0:00:03]} Kh8 {[%emt 0:00:12]} 41. Qf6+ {[%emt 0:40:15]} Kh7 {[%emt 0:40:10]} 42. d5 {[%emt 0:00:07]} Qd3 {[%emt 0:01:02]} 43. d6 {[%emt 0:00:18]} e3 {[%emt 0:00:08]} 44. Qe7+ {[%emt 0:00:03]} Kg8 {[%emt 0:00:12]} 45. d7 {[%emt 0:00:07]} 1-0